bitfinex-derivatives/quotes_SOLF0:USTF0_20241120
["timestamp","ask_amount","ask_price","bid_price","bid_amount"]
[1732086272324,2.22,234.59,234.55,10.46165126]
[1732086272527,2.22,234.58,234.56,2.1295]
[1732086272728,2.22,234.58,234.55,10.46165126]
[1732086273726,1.0,234.68,234.55,10.46165126]
[1732086273926,2.22,234.67,234.59,10.46165126]
[1732086275424,4.3486,234.67,234.6,2.1291]
[1732086275623,2.22,234.67,234.59,10.46165126]
[1732086277229,2.22,234.67,234.56,10.46165126]
[1732086277626,2.129,234.63,234.56,10.46165126]
[1732086277835,2.22,234.67,234.55,2.1296]
[1732086278231,2.1291,234.62,234.55,2.1296]
[1732086278429,2.22,234.61,234.53,10.46165126]
[1732086278630,2.22,234.6,234.53,12.59145126]
[1732086278831,2.22,234.59,234.53,12.59145126]
[1732086280835,2.22,234.59,234.54,2.1297]
[1732086281639,2.22,234.59,234.53,10.46165126]
[1732086281836,2.22,234.59,234.56,12.59115126]
[1732086282639,2.22,234.59,234.56,10.46165126]
[1732086284136,2.22,234.59,234.57,2.1295]
[1732086284538,2.22,234.6,234.57,2.1295]
[1732086284738,2.22,234.6,234.59,10.46165126]
[1732086287039,2.22,234.6,234.53,10.46165126]
[1732086287245,2.1294,234.58,234.53,10.46165126]
[1732086287449,2.22,234.6,234.53,10.46165126]
[1732086287941,2.1295,234.58,234.53,10.46165126]
[1732086288143,2.22,234.6,234.5,10.46165126]
[1732086290248,2.1297,234.54,234.5,10.46165126]
[1732086290549,2.22,234.53,234.5,10.46165126]
[1732086291147,4.3499,234.53,234.47,10.46165126]
[1732086291345,2.22,234.52,234.47,10.46165126]
[1732086291646,2.22,234.51,234.47,10.46165126]
[1732086291948,2.22,234.5,234.47,10.46165126]
[1732086292147,2.22,234.49,234.47,10.46165126]
[1732086292348,2.22,234.48,234.47,10.46165126]
[1732086294044,2.17033986,234.56,234.47,10.46165126]
[1732086294247,2.13,234.51,234.47,10.46165126]
[1732086294451,2.08675642,234.53,234.47,10.46165126]
[1732086294751,2.22,234.55,234.44,10.46165126]
[1732086294951,4.39819855,234.55,234.44,10.46165126]
[1732086295544,1.0,234.54,234.44,10.46165126]
[1732086297156,2.13,234.49,234.44,10.46165126]
[1732086297352,2.22,234.48,234.44,10.46165126]
[1732086297955,4.3501,234.48,234.44,10.46165126]
[1732086298851,2.22,234.5,234.47,10.46165126]
[1732086301253,2.22,234.5,234.49,2.13]
[1732086302356,2.22,234.5,234.47,10.46165126]
[1732086302963,4.35,234.5,234.44,12.59205126]
[1732086304162,4.35,234.5,234.44,10.46165126]
[1732086304362,4.35,234.5,234.45,2.1304]
[1732086304861,2.22,234.5,234.45,2.1304]
[1732086305969,4.3499,234.5,234.45,2.1304]
[1732086306365,2.22,234.5,234.45,2.1304]
[1732086306971,2.22,234.5,234.46,2.1303]
[1732086309467,2.1301,234.48,234.42,2.1306]
[1732086309669,2.22,234.5,234.41,10.46165126]
[1732086310067,2.22,234.5,234.44,10.46165126]
[1732086310265,2.22,234.5,234.47,10.46165126]
[1732086310570,2.1295,234.55,234.5,2.1299]
[1732086310776,2.24,234.54,234.51,6.69988593]
[1732086313266,4.3696,234.54,234.51,6.69988593]
[1732086314667,2.1298,234.52,234.38,1.2515]
[1732086314874,2.1298,234.52,234.48,6.69988593]
[1732086315072,6.69988593,234.52,234.38,1.2515]
[1732086315275,6.69988593,234.52,234.44,6.69988593]
[1732086315474,2.1301,234.48,234.44,6.69988593]
[1732086315673,2.24,234.47,234.44,6.69988593]
[1732086316074,2.24,234.47,234.38,1.2515]
[1732086316075,2.24,234.47,234.46,6.69988593]
[1732086318578,2.24,234.47,234.45,2.1304]
[1732086320172,2.24,234.47,234.44,12.60255222]
[1732086321481,2.24,234.47,234.43,2.1305]
[1732086322582,2.1301,234.48,234.43,2.1305]
[1732086322784,12.94335222,234.56,234.41,10.47215222]
[1732086322976,10.47215222,234.52,234.38,11.72365222]
[1732086323284,10.47215222,234.52,234.27,5.30141562]
[1732086323285,10.47215222,234.52,234.35,11.71005222]
[1732086323483,10.47215222,234.49,234.35,13.84125222]
[1732086323783,3.4525,234.48,234.35,13.84125222]
[1732086324083,2.1307,234.42,234.35,13.84125222]
[1732086324280,2.24,234.41,234.35,13.84125222]
[1732086324483,2.24,234.4,234.35,13.84125222]
[1732086324677,2.24,234.39,234.36,2.1312]
[1732086324876,2.24,234.38,234.35,11.71005222]
[1732086325189,2.24,234.37,234.35,11.71005222]
[1732086325485,2.24,234.39,234.37,2.1311]
[1732086325982,2.24,234.39,234.35,11.71005222]
[1732086326182,2.24,234.39,234.36,2.1312]
[1732086327186,2.24,234.39,234.32,10.47215222]
[1732086328083,2.24,234.39,234.26,1.307]
[1732086328288,2.24,234.39,234.27,10.47215222]
[1732086328985,2.1315,234.33,234.27,10.47215222]
[1732086329191,2.24,234.32,234.27,10.47215222]
[1732086329492,2.24,234.31,234.27,10.47215222]
[1732086330289,2.13495576,234.43,234.3,10.47215222]
[1732086330483,2.4525,234.47,234.33,10.47215222]
[1732086330484,2.22,234.42,234.33,10.47215222]
[1732086330683,4.30225012,234.41,234.33,10.47215222]
[1732086330885,2.22,234.4,234.33,10.47215222]
[1732086331388,2.4525,234.47,234.36,10.47215222]
[1732086331591,1.2125,234.48,234.39,10.47215222]
[1732086331886,2.22,234.47,234.39,10.47215222]
[1732086333391,2.1303,234.46,234.39,12.60305222]
[1732086333692,2.22,234.47,234.39,10.47215222]
[1732086334787,2.22,234.46,234.39,10.47215222]
[1732086335391,2.22,234.46,234.42,10.47215222]
[1732086335989,1.1891,234.54,234.42,10.47215222]
[1732086336190,2.22,234.5,234.42,10.47215222]
[1732086336889,2.22,234.5,234.47,2.1302]
[1732086337196,2.22,234.49,234.45,10.47215222]
[1732086338293,2.22,234.49,234.47,2.1301]
[1732086338995,2.22,234.55,234.48,10.47215222]
[1732086339193,2.22,234.57,234.54,10.47215222]
[1732086339395,2.391,234.67,234.54,10.47215222]
[1732086339600,2.22,234.66,234.54,10.47215222]
[1732086340300,2.1288,234.62,234.55,2.1294]
[1732086340596,2.13952642,234.7,234.49,1.2682]
[1732086340597,236.23050104,234.77,234.57,10.47215222]
[1732086340797,2.22,234.7,234.58,2.1291]
[1732086341601,2.22,234.7,234.57,10.47215222]
[1732086342397,2.22,234.7,234.57,12.60145222]
[1732086342697,2.22,234.7,234.57,10.47215222]
[1732086342902,2.1285,234.66,234.59,2.1291]
[1732086343596,2.22,234.7,234.57,10.47215222]
[1732086344797,2.22,234.69,234.57,10.47215222]
[1732086345498,2.22,234.69,234.56,10.47215222]
[1732086345900,2.1287,234.64,234.57,2.1293]
[1732086346205,2.22,234.63,234.57,2.1293]
[1732086346606,2.129,234.61,234.53,12.60175222]
[1732086347299,2.22,234.63,234.53,12.60175222]
[1732086347501,2.129,234.6,234.53,12.60175222]
[1732086348507,2.22,234.63,234.53,10.47215222]
[1732086348703,2.22,234.63,234.49,1.2682]
[1732086348704,2.1289,234.62,234.56,10.47215222]
[1732086349501,2.22,234.63,234.56,10.47215222]
[1732086350606,2.1292,234.58,234.52,12.60185222]
[1732086350800,2.22,234.57,234.52,12.60185222]
[1732086351197,2.22,234.57,234.49,11.74035222]
[1732086351597,2.22,234.57,234.49,1.2682]
[1732086352299,2.1296,234.54,234.49,1.2682]
[1732086352600,2.22,234.57,234.49,11.74035222]
[1732086353101,2.1296,234.54,234.49,11.74035222]
[1732086354700,2.4714,234.62,234.52,10.47215222]
[1732086354900,2.22,234.61,234.52,10.47215222]
[1732086355306,2.1293,234.57,234.52,10.47215222]
[1732086355910,2.1293,234.57,234.49,11.74035222]
[1732086356306,2.1293,234.57,234.51,2.1298]
[1732086357409,2.1293,234.57,234.49,11.74035222]
[1732086358012,2.1293,234.57,234.51,2.1298]
[1732086358811,2.1293,234.57,234.52,10.47215222]
[1732086360815,2.18,234.56,234.52,10.47215222]
[1732086361013,2.18,234.55,234.52,10.47215222]
[1732086361409,2.18,234.55,234.52,12.60185222]
[1732086362013,2.18,234.55,234.54,2.1296]
[1732086362415,2.1291,234.6,234.54,2.1296]
[1732086362718,2.18,234.59,234.54,2.1296]
[1732086362912,2.18,234.59,234.55,2.1294]
[1732086363412,2.18,234.59,234.55,12.60155222]
[1732086363613,2.18,234.59,234.57,2.1292]
[1732086363814,2.1287,234.64,234.58,10.47215222]
[1732086364014,2.18,234.63,234.58,10.47215222]
[1732086364215,2.1288,234.62,234.58,10.47215222]
[1732086364414,2.18,234.63,234.52,10.47215222]
[1732086364619,2.18,234.63,234.49,1.2682]
[1732086364812,2.18,234.63,234.49,11.74035222]
[1732086365013,2.1295,234.55,234.49,13.87035222]
[1732086365216,2.1295,234.55,234.49,11.74035222]
[1732086365217,2.18,234.54,234.49,11.74035222]
[1732086366212,2.18,234.54,234.5,2.1299]
[1732086367321,2.18,234.54,234.49,11.74035222]
[1732086367521,2.18,234.54,234.49,13.87035222]
[1732086368221,2.1297,234.53,234.49,1.2682]
[1732086368925,2.18,234.54,234.49,1.2682]
[1732086369126,4.3096,234.54,234.49,1.2682]
[1732086373834,4.3096,234.54,234.49,3.3982]
[1732086374434,4.3096,234.54,234.49,1.2682]
[1732086376438,2.18,234.54,234.46,1.2517]
[1732086376634,2.18,234.54,234.49,6.70111534]
[1732086376834,2.1298,234.51,234.49,6.70111534]
[1732086377034,2.18,234.54,234.49,6.70111534]
[1732086377436,2.18,234.54,234.42,2.1306]
[1732086377735,6.70111534,234.53,234.45,6.70111534]
[1732086378332,2.1302,234.48,234.45,6.70111534]
[1732086378531,2.18,234.47,234.45,6.70111534]
[1732086378932,4.3102,234.47,234.45,6.70111534]
[1732086379540,2.18,234.46,234.45,6.70111534]
[1732086380039,2.18,234.46,234.43,2.1305]
[1732086380235,2.18,234.46,234.44,6.70111534]
[1732086381429,4.3103,234.46,234.44,6.70111534]
[1732086381743,2.18,234.46,234.44,6.70111534]
[1732086386439,4.3103,234.46,234.44,6.70111534]
[1732086386741,2.1304,234.45,234.44,6.70111534]
[1732086387043,2.18,234.46,234.42,6.70111534]
[1732086388137,2.18,234.46,234.37,1.2335]
[1732086388341,10.99134435,234.46,234.38,6.70111534]
[1732086388542,6.70111534,234.44,234.36,6.70111534]
[1732086388742,2.131,234.38,234.36,6.70111534]
[1732086388944,2.18,234.37,234.36,6.70111534]
[1732086389139,2.18,234.37,234.33,37.44347043]
[1732086390545,4.3111,234.37,234.33,37.44347043]
[1732086391736,2.18,234.37,234.35,6.70111534]
[1732086391937,2.18,234.37,234.36,6.70111534]
[1732086393445,2.18,234.37,234.33,30.74235509]
[1732086393747,2.18,234.37,234.36,6.70111534]
[1732086394250,2.14,234.37,234.36,6.70111534]
[1732086395244,2.14,234.37,234.36,8.83231534]
[1732086400745,1.2647,234.45,234.36,6.70111534]
[1732086400942,2.14,234.44,234.42,6.70111534]
[1732086401142,2.14,234.43,234.42,6.70111534]
[1732086403051,2.14,234.43,234.31,1.2592]
[1732086403247,2.14,234.43,234.39,6.70111534]
[1732086403447,2.14,234.43,234.41,6.70111534]
[1732086405247,2.14,234.43,234.42,2.1306]
[1732086405448,1.2902,234.55,234.41,6.70111534]
[1732086405449,6.70111534,234.54,234.41,6.70111534]
[1732086405654,1.2902,234.55,234.48,6.70111534]
[1732086405952,2.1298,234.51,234.5,6.70111534]
[1732086406358,4.2498,234.51,234.5,6.70111534]
[1732086407363,2.12,234.51,234.5,6.70111534]
[1732086409061,2.12,234.51,234.38,2.4564]
[1732086409260,2.12,234.51,234.48,6.70111534]
[1732086409557,2.12,234.51,234.4,1.218]
[1732086409955,2.12,234.51,234.45,6.70111534]
[1732086410362,2.1302,234.48,234.45,6.70111534]
[1732086411162,2.12,234.51,234.47,6.70111534]
[1732086411368,4.2498,234.51,234.49,6.70111534]
[1732086411762,2.12,234.51,234.49,6.70111534]
[1732086412560,4.2499,234.51,234.49,6.70111534]
[1732086412767,4.2499,234.51,234.46,2.1303]
[1732086412966,4.2499,234.51,234.48,6.70111534]
[1732086413467,4.2499,234.51,234.46,6.70111534]
[1732086414064,2.1299,234.5,234.46,6.70111534]
[1732086414659,2.12,234.51,234.46,8.83141534]
[1732086416160,2.12,234.51,234.48,6.70111534]
[1732086416866,4.2499,234.51,234.48,6.70111534]
[1732086418565,2.12,234.51,234.48,6.70111534]
[1732086418762,2.1299,234.5,234.46,8.83141534]
[1732086419368,4.2498,234.51,234.46,8.83141534]
[1732086420371,2.1299,234.5,234.46,8.83141534]
[1732086420664,2.12,234.51,234.4,1.218]
[1732086420867,2.13,234.5,234.44,6.70111534]
[1732086421069,2.12,234.51,234.44,6.70111534]
[1732086421468,2.12,234.51,234.42,2.1306]
[1732086421469,6.70111534,234.5,234.4,1.218]
[1732086421769,6.70111534,234.5,234.42,6.70111534]
[1732086421971,2.1304,234.45,234.4,7.91911534]
[1732086422174,2.32,234.44,234.42,6.70111534]
[1732086422671,4.4505,234.44,234.4,7.91911534]
[1732086422868,4.4505,234.44,234.4,6.70111534]
[1732086423272,2.1306,234.43,234.4,6.70111534]
[1732086423472,2.32,234.44,234.4,6.70111534]
[1732086423772,2.32,234.44,234.42,6.70111534]
[1732086429571,2.1304,234.45,234.42,6.70111534]
[1732086429572,2.32,234.47,234.42,6.70111534]
[1732086429785,2.32,234.47,234.46,6.70111534]
[1732086430772,2.32,234.47,234.39,2.5598]
[1732086430972,2.32,234.47,234.46,6.70111534]
[1732086432475,2.32,234.47,234.46,8.83141534]
[1732086432872,2.32,234.49,234.48,2.13]
[1732086433076,2.32,234.5,234.48,8.83111534]
[1732086433373,2.1295,234.56,234.49,6.70111534]
[1732086433579,2.32,234.55,234.52,6.70111534]
[1732086433777,1.2748,234.62,234.52,6.70111534]
[1732086433979,12.78,234.75,234.56,6.70111534]
[1732086434179,2.32,234.63,234.58,6.70111534]
[1732086435578,2.4833,234.69,234.58,6.70111534]
[1732086435776,2.32,234.63,234.62,6.70111534]
[1732086436473,2.32,234.64,234.62,8.82991534]
[1732086436674,2.32,234.64,234.62,12.58336068]
[1732086438181,2.32,234.64,234.51,2.32]
[1732086438182,2.32,234.64,234.59,10.45456068]
[1732086438385,2.32,234.64,234.59,2.1291]
[1732086438881,2.32,234.64,234.58,10.45456068]
[1732086439472,2.32,234.64,234.55,10.45456068]
[1732086439673,4.4487,234.64,234.57,2.1293]
[1732086439880,4.4487,234.64,234.58,10.45456068]
[1732086440885,2.10492087,234.71,234.63,10.45456068]
[1732086440886,2.32,234.71,234.63,10.45456068]
[1732086441276,4.42936924,234.71,234.63,10.45456068]
[1732086441477,6.55736924,234.71,234.64,2.1286]
[1732086441781,2.32,234.7,234.63,10.45456068]
[1732086441982,2.32,234.69,234.63,10.45456068]
[1732086442285,2.32,234.68,234.63,12.58326068]
[1732086442581,2.32,234.67,234.63,12.58326068]
[1732086442884,2.32,234.66,234.63,12.58326068]
[1732086443079,2.32,234.66,234.63,10.45456068]
[1732086444782,2.32,234.66,234.64,2.1286]
[1732086445579,2.32,234.66,234.63,10.45456068]
[1732086445780,2.32,234.66,234.6,10.45456068]
[1732086446382,2.32,234.66,234.6,12.58346068]
[1732086446587,2.32,234.66,234.34,17.73162639]
[1732086446588,2.32,234.66,234.57,10.45456068]
[1732086446987,2.1286,234.65,234.58,2.1292]
[1732086447494,2.32,234.66,234.57,12.58386068]
[1732086447495,2.1287,234.64,234.57,12.58386068]
[1732086447989,2.32,234.63,234.57,12.58386068]
[1732086449291,2.32,234.63,234.58,2.1292]
[1732086450589,2.32,234.63,234.59,2.1291]
[1732086452995,10.45456068,234.77,234.62,10.45456068]
[1732086453193,2.4,234.76,234.62,10.45456068]
[1732086453392,2.4,234.75,234.62,10.45456068]
[1732086453592,2.4,234.75,234.65,2.1285]
[1732086453593,2.128,234.71,234.65,2.1285]
[1732086454489,2.1279,234.73,234.66,2.1284]
[1732086454890,5.90376287,234.78,234.68,10.45456068]
[1732086454891,2.5301,234.78,234.68,10.45456068]
[1732086455091,2.4,234.77,234.71,2.128]
[1732086455496,2.4,234.77,234.71,10.45456068]
[1732086455692,2.4,234.77,234.72,2.1279]
[1732086456991,2.1274,234.78,234.72,2.1279]
[1732086457289,2.4,234.76,234.72,2.1279]
[1732086458597,2.15130322,234.8,234.71,10.45456068]
[1732086458800,2.4,234.79,234.71,10.45456068]
[1732086460199,2.4508,234.86,234.71,10.45456068]
[1732086460402,2.1273,234.79,234.73,2.1278]
[1732086460600,2.4,234.78,234.73,2.1278]
[1732086460897,2.4508,234.86,234.74,10.45456068]
[1732086461095,2.4508,234.86,234.77,10.45456068]
[1732086461295,2.4,234.85,234.77,10.45456068]
[1732086461499,2.4508,234.86,234.77,10.45456068]
[1732086461500,2.4,234.84,234.77,10.45456068]
[1732086461893,4.5268,234.84,234.78,2.1274]
[1732086462598,4.5268,234.84,234.81,6.68209798]
[1732086462804,2.4,234.84,234.81,6.68209798]
[1732086463795,4.5269,234.84,234.77,2.1274]
[1732086464001,2.4,234.84,234.8,6.68209798]
[1732086464604,2.4,234.84,234.77,2.1274]
[1732086465109,2.4,234.84,234.78,2.1273]
[1732086465299,2.4,234.84,234.76,10.44266582]
[1732086465498,1.2532,234.86,234.79,10.44266582]
[1732086465700,2.1266,234.87,234.79,10.44266582]
[1732086465701,2.4,234.85,234.79,10.44266582]
[1732086466201,2.4,234.84,234.79,10.44266582]
[1732086466604,0.27231,234.89,234.79,10.44266582]
[1732086466605,2.39871,234.89,234.79,10.44266582]
[1732086466802,0.27231,234.89,234.82,10.44266582]
[1732086467104,2.4,234.88,234.84,2.1268]
[1732086468097,2.4,234.88,234.84,2.1267]
[1732086468297,2.4,234.87,234.82,10.44266582]
[1732086468597,2.4,234.87,234.85,2.1267]
[1732086468800,2.4,234.87,234.85,12.56936582]
[1732086470302,2.4,234.87,234.85,10.44266582]
[1732086470704,2.4,234.87,234.79,10.44266582]
[1732086470900,2.1268,234.85,234.79,10.44266582]
[1732086471106,2.4,234.87,234.79,10.44266582]
[1732086471302,2.4,234.87,234.76,10.44266582]
[1732086472404,2.4,234.87,234.73,14.16956582]
[1732086472605,2.4,234.87,234.73,12.94516582]
[1732086472801,2.4,234.87,234.73,15.07296582]
[1732086473411,2.1269,234.83,234.73,15.07296582]
[1732086473609,2.126542,234.82,234.73,15.07296582]
[1732086473911,11.66736582,234.88,234.73,15.07296582]
[1732086473912,2.1273,234.79,234.73,15.07296582]
[1732086474405,2.4,234.81,234.73,12.94516582]
[1732086474612,2.4,234.81,234.76,12.57016582]
[1732086475304,2.4,234.81,234.77,2.1275]
[1732086475508,2.4,234.81,234.76,10.44266582]
[1732086475711,2.4,234.8,234.76,10.44266582]
[1732086475906,1.2247,234.88,234.76,10.44266582]
[1732086476106,2.4,234.87,234.76,10.44266582]
[1732086476911,2.1268,234.84,234.79,2.1272]
[1732086479710,2.1268,234.84,234.77,2.1274]
[1732086479913,2.1268,234.84,234.76,10.44266582]
[1732086481307,2.1268,234.84,234.78,2.1274]
[1732086483707,2.4,234.87,234.76,10.44266582]
[1732086483909,1.2247,234.88,234.76,10.44266582]
[1732086484110,2.36,234.87,234.76,10.44266582]
[1732086484913,2.1268,234.85,234.78,2.1273]
[1732086485109,2.1268,234.85,234.76,10.44266582]
[1732086485509,2.1268,234.85,234.79,2.1273]
[1732086486308,2.1268,234.85,234.79,12.56996582]
[1732086486515,2.1266,234.87,234.82,10.44266582]
[1732086486715,2.36,234.86,234.82,10.44266582]
[1732086488207,2.36,234.86,234.82,12.56966582]
[1732086488915,2.36,234.86,234.8,2.1271]
[1732086489613,2.36,234.86,234.79,10.44266582]
[1732086489911,2.36,234.86,234.81,2.1273]
[1732086490813,4.4869,234.86,234.78,10.44266582]
[1732086491316,4.4869,234.86,234.8,2.1274]
[1732086494513,2.36,234.86,234.8,2.1274]
[1732086494715,2.127,234.85,234.82,6.68209505]
[1732086495612,2.36,234.86,234.74,1.2198]
[1732086495814,2.36,234.86,234.78,6.68209505]
[1732086496317,2.36,234.86,234.8,6.68209505]
[1732086497119,2.1273,234.81,234.8,6.68209505]
[1732086498216,236.23050104,234.96,234.8,6.68209505]
[1732086498414,2.36,234.91,234.83,6.68209505]
[1732086499022,2.127,234.84,234.83,6.68209505]
[1732086499219,4.487,234.84,234.83,6.68209505]
[1732086502431,4.487,234.84,234.81,6.68209505]
[1732086502929,4.487,234.84,234.83,6.68209505]
[1732086503229,2.36,234.84,234.83,6.68209505]
[1732086503630,30.68,234.92,234.83,6.68209505]
[1732086503831,2.36,234.91,234.85,6.68209505]
[1732086504035,2.36,234.91,234.87,6.68209505]
[1732086504332,2.1265,234.9,234.87,6.68209505]
[1732086505532,2.36,234.89,234.87,6.68209505]
[1732086507231,4.4866,234.89,234.87,6.68209505]
[1732086511031,2.1268,234.87,234.79,2.1275]
[1732086511236,2.1268,234.87,234.85,6.68209505]
[1732086511533,2.36,234.89,234.83,6.68209505]
[1732086512539,2.127,234.84,234.79,2.1274]
[1732086512739,2.26,234.83,234.81,6.68209505]
[1732086514241,4.3872,234.83,234.81,6.68209505]
[1732086514534,2.26,234.83,234.74,1.2198]
[1732086514843,2.26,234.83,234.79,6.68209505]
[1732086515044,2.1273,234.82,234.79,6.68209505]
[1732086515334,2.26,234.83,234.79,6.68209505]
[1732086515543,30.68,234.92,234.82,6.68209505]
[1732086515840,30.68,234.92,234.85,6.68209505]
[1732086515841,2.26,234.91,234.85,6.68209505]
[1732086517240,2.26,234.91,234.74,1.2198]
[1732086517241,2.26,234.91,234.87,6.68209505]
[1732086517841,2.1265,234.9,234.87,6.68209505]
[1732086520141,2.26,234.91,234.85,6.68209505]
[1732086521540,2.1267,234.88,234.85,6.68209505]
[1732086521934,2.26,234.91,234.85,6.68209505]
[1732086522734,2.26,234.91,234.74,1.2198]
[1732086522938,6.68209505,234.9,234.81,6.68209505]
[1732086524242,2.1271,234.84,234.81,6.68209505]
[1732086524441,2.26,234.83,234.81,6.68209505]
[1732086527845,2.26,234.83,234.79,6.68209505]
[1732086528045,2.26,234.83,234.79,8.80949505]
[1732086531650,2.26,234.83,234.79,6.68209505]
[1732086535056,2.26,234.83,234.78,2.1275]
[1732086535261,2.26,234.83,234.79,6.68209505]
[1732086536049,2.1273,234.82,234.79,6.68209505]
[1732086536746,2.1279,234.75,234.69,2.1283]
[1732086536946,2.26,234.74,234.72,6.68209505]
[1732086537145,6.68209505,234.81,234.72,6.68209505]
[1732086537146,2.26,234.73,234.72,6.68209505]
[1732086542052,2.14342297,234.81,234.72,6.68209505]
[1732086542255,2.22,234.8,234.77,6.68209505]
[1732086542458,2.22,234.79,234.65,4.99274493]
[1732086542755,2.22,234.78,234.67,2.1285]
[1732086542951,2.22,234.78,234.63,3.7667]
[1732086543147,2.22,234.78,234.64,10.43436178]
[1732086543346,2.22,234.78,234.65,4.99243921]
[1732086543552,2.22,234.78,234.77,6.68209505]
[1732086545352,2.22,234.78,234.77,8.80969505]
[1732086546351,2.22,234.78,234.77,6.68209505]
[1732086546756,2.22,234.78,234.75,2.1278]
[1732086546957,2.22,234.78,234.77,6.68209505]
[1732086550759,66.31249123,234.97,234.8,2.1274]
[1732086551064,8.90209505,234.92,234.83,6.68209505]
[1732086551259,2.127,234.85,234.83,6.68209505]
[1732086551466,2.22,234.84,234.83,6.68209505]
[1732086552262,2.22,234.84,234.81,6.68209505]
[1732086554656,2.22,234.84,234.81,8.80929505]
[1732086554859,2.22,234.84,234.83,6.68209505]
[1732086555963,2.22,234.84,234.81,6.68209505]
[1732086562567,4.3471,234.84,234.81,6.68209505]
[1732086562765,2.22,234.84,234.81,6.68209505]
[1732086564963,2.22,234.84,234.79,2.1274]
[1732086565167,2.22,234.84,234.81,6.68209505]
[1732086566569,4.3471,234.84,234.81,6.68209505]
[1732086568665,2.22,234.84,234.81,6.68209505]
[1732086569670,4.347,234.84,234.81,6.68209505]
[1732086569872,2.22,234.84,234.81,6.68209505]
[1732086571173,2.1273,234.82,234.77,6.68209505]
[1732086572268,2.1273,234.82,234.77,8.80969505]
[1732086573672,4.3471,234.84,234.79,6.68209505]
[1732086574975,2.22,234.84,234.79,8.80949505]
[1732086576166,2.22,234.84,234.79,6.68209505]
[1732086576372,2.22,234.84,234.8,2.1274]
[1732086576573,2.22,234.84,234.79,6.68209505]
[1732086578380,4.347,234.84,234.79,8.80959505]
[1732086580882,4.347,234.84,234.73,1.2683]
[1732086580883,2.16,234.83,234.81,8.80939505]
[1732086581077,2.16,234.82,234.81,8.80939505]
[1732086582979,2.16,234.82,234.79,2.1274]
[1732086585084,2.16,234.82,234.76,6.68209505]
[1732086585287,4.2873,234.82,234.76,6.68209505]
[1732086585481,2.16,234.82,234.76,8.80979505]
[1732086586486,2.1273,234.81,234.76,8.80979505]
[1732086594288,2.16,234.8,234.76,8.80979505]
[1732086602107,2.16,234.8,234.72,1.2378]
[1732086602300,8.84209505,234.8,234.71,6.68209505]
[1732086603304,2.1277,234.78,234.73,2.128]
[1732086603503,2.16,234.8,234.75,6.68209505]
[1732086603999,2.16,234.8,234.75,8.80989505]
[1732086604000,4.2874,234.8,234.75,8.80989505]
[1732086605002,2.16,234.8,234.77,6.68209505]
[1732086606203,2.16,234.8,234.78,2.1276]
[1732086608012,2.16,234.8,234.77,6.68209505]
[1732086609411,4.2874,234.8,234.67,2.60217275]
[1732086609607,2.16,234.8,234.72,6.68209505]
[1732086610007,8.84209505,234.8,234.66,1.2841]
[1732086610207,8.84209505,234.8,234.7,6.68209505]
[1732086610509,8.84209505,234.8,234.72,6.68209505]
[1732086611707,2.1278,234.76,234.72,6.68209505]
[1732086611907,2.14,234.75,234.72,6.68209505]
[1732086612207,2.14,234.75,234.66,1.2841]
[1732086612208,2.15859932,234.82,234.74,6.68209505]
[1732086612408,4.2674,234.81,234.76,8.80989505]
[1732086612613,2.14,234.8,234.76,8.80989505]
[1732086613008,2.14,234.8,234.78,6.68209505]
[1732086618509,2.1272,234.82,234.78,6.68209505]
[1732086618716,2.14,234.81,234.8,6.68209505]
[1732086618908,2.14,234.81,234.77,2.1277]
[1732086619107,2.14,234.81,234.8,6.68209505]